bitfinex-derivatives/quotes_SOLF0:USTF0_20250114
["timestamp","ask_amount","ask_price","bid_price","bid_amount"]
[1736892876878,7.82222696,187.16,187.14,2.6728]
[1736892877273,7.86805129,187.15,187.14,2.6728]
[1736892882277,2.6724,187.18,187.15,2.6728]
[1736892882576,7.86805129,187.16,187.15,2.6728]
[1736892889088,7.86805129,187.16,187.11,100.60741709]
[1736892889289,7.86805129,187.14,187.13,2.673]
[1736892890679,10.54105129,187.14,187.12,2.6732]
[1736892890887,10.54105129,187.14,187.11,100.60741709]
[1736892891089,7.86805129,187.12,187.11,100.60741709]
[1736892892192,7.86805129,187.12,187.11,103.28071709]
[1736892894494,4.8819,187.22,187.11,100.60741709]
[1736892894698,2.6723,187.19,187.16,2.6725]
[1736892894997,7.86805129,187.17,187.16,2.6725]
[1736892900691,10.54055129,187.17,187.15,2.6728]
[1736892900895,7.86805129,187.16,187.15,2.6728]
[1736892901791,7.86805129,187.16,187.11,100.60741709]
[1736892901994,7.86805129,187.12,187.11,100.60741709]
[1736892903095,7.86805129,187.12,187.11,103.28081709]
[1736892903293,120.93602267,187.36,187.12,32.04]
[1736892903495,295.22601937,187.42,187.35,7.86805129]
[1736892903690,2.6664,187.6,187.47,2.6681]
[1736892903898,100.02,187.66,187.4,5.88]
[1736892904096,7.86805129,187.53,187.41,7.43301789]
[1736892904392,7.86805129,187.53,187.44,2.6686]
[1736892904597,7.86805129,187.53,187.44,10.10161789]
[1736892905193,7.86805129,187.53,187.49,734.25917508]
[1736892905393,7.86805129,187.51,187.49,734.25917508]
[1736892906298,7.86805129,187.51,187.49,731.68737508]
[1736892906495,7.86805129,187.51,187.49,726.54377508]
[1736892907096,10.53575129,187.51,187.49,723.97197508]
[1736892907291,10.53575129,187.51,187.49,602.9292198]
[1736892907493,7.86805129,187.51,187.47,563.2997636]
[1736892907698,7.86805129,187.48,187.47,563.2997636]
[1736892908002,13.74805129,187.48,187.45,558.1553636]
[1736892908200,7.86805129,187.46,187.45,550.0712636]
[1736892908397,7.86805129,187.46,187.45,441.04787174]
[1736892908601,7.86805129,187.46,187.45,431.57117174]
[1736892909298,7.86805129,187.46,187.42,414.63940578]
[1736892909498,7.86805129,187.43,187.42,414.63940578]
[1736892910096,7.86805129,187.43,187.42,221.38094062]
[1736892913396,13.72805129,187.43,187.42,96.08808534]
[1736892913592,13.72805129,187.43,187.42,63.01548534]
[1736892913798,13.72805129,187.43,187.42,46.62028534]
[1736892914101,13.72805129,187.43,187.42,15.99588534]
[1736892915199,2.6692,187.41,187.3,10.53865129]
[1736892915399,7.86805129,187.36,187.31,6.39368672]
[1736892915595,7.86805129,187.36,187.32,2.02481731]
[1736892915799,7.86805129,187.36,187.3,7.86805129]
[1736892916004,7.86805129,187.36,187.31,6.39443108]
[1736892916212,7.86805129,187.36,187.32,2.02516794]
[1736892916504,7.86805129,187.36,187.3,7.86805129]
[1736892916709,7.86805129,187.36,187.31,6.39347563]
[1736892917002,7.86805129,187.36,187.3,7.86805129]
[1736892917199,7.86805129,187.36,187.31,6.39338623]
[1736892917506,7.86805129,187.36,187.3,10.53865129]
[1736892917706,7.86805129,187.36,187.31,2.02446539]
[1736892917907,7.86805129,187.36,187.31,2.6705]
[1736892919309,7.86805129,187.36,187.3,2.6707]
[1736892919310,13.70805129,187.36,187.3,2.6707]
[1736892919605,73.92354739,187.42,187.29,1.6346]
[1736892919900,2.6695,187.39,187.31,2.6705]
[1736892920101,7.86805129,187.35,187.29,1.6346]
[1736892921305,7.86805129,187.35,187.3,2.6705]
[1736892924705,10.53825129,187.33,187.28,5.9219]
[1736892924901,10.53825129,187.33,187.28,3.2511]
[1736892925511,7.86805129,187.31,187.28,3.2511]
[1736892926914,7.86805129,187.31,187.27,2.6711]
[1736892928917,7.86805129,187.31,187.24,7.86805129]
[1736892929119,7.86805129,187.29,187.22,11.12845129]
[1736892929419,7.86805129,187.29,187.23,6.4014523]
[1736892929615,7.86805129,187.29,187.24,6.4014523]
[1736892929813,7.86805129,187.29,187.22,11.12845129]
[1736892930011,7.86805129,187.29,187.23,6.40158214]
[1736892930213,7.86805129,187.29,187.24,2.0273803]
[1736892930420,7.86805129,187.29,187.23,2.6715]
[1736892930716,7.86805129,187.29,187.24,6.40311479]
[1736892930919,7.86805129,187.29,187.23,2.6715]
[1736892931119,7.86805129,187.29,187.24,6.40313989]
[1736892931314,7.86805129,187.29,187.23,2.6715]
[1736892931513,7.86805129,187.29,187.24,6.40470668]
[1736892931714,7.86805129,187.29,187.23,2.6715]
[1736892931919,7.86805129,187.29,187.24,6.40470666]
[1736892932128,7.86805129,187.29,187.23,2.6715]
[1736892932418,7.86805129,187.29,187.24,6.40600669]
[1736892932619,7.86805129,187.29,187.25,2.02874881]
[1736892932816,10.53895129,187.29,187.23,2.6715]
[1736892933017,10.53895129,187.29,187.24,6.40631154]
[1736892933217,10.53895129,187.29,187.25,2.02884065]
[1736892933417,10.53895129,187.29,187.23,2.6715]
[1736892933618,10.53895129,187.29,187.24,6.40803649]
[1736892933818,2.6709,187.28,187.25,2.0293842]
[1736892934019,2.6709,187.28,187.23,2.6715]
[1736892934220,2.6709,187.28,187.24,6.40794974]
[1736892934420,2.6709,187.28,187.25,2.02936469]
[1736892934621,2.6709,187.28,187.23,2.6715]
[1736892934920,2.6709,187.28,187.24,6.40983392]
[1736892935119,2.6709,187.28,187.25,2.02994731]
[1736892935321,2.6709,187.28,187.23,2.6715]
[1736892935519,2.6709,187.28,187.24,6.41220263]
[1736892935715,2.6709,187.28,187.25,2.03068583]
[1736892936023,2.6709,187.28,187.23,2.6715]
[1736892936219,2.6709,187.28,187.24,6.41228557]
[1736892936420,2.6709,187.28,187.25,2.03072568]
[1736892936623,2.6709,187.28,187.23,2.6715]
[1736892936824,2.6709,187.28,187.24,9.08651004]
[1736892937023,2.6709,187.28,187.25,2.03159736]
[1736892937219,2.6709,187.28,187.24,2.6715]
[1736892937419,2.6709,187.28,187.25,6.41797032]
[1736892937725,2.6709,187.28,187.24,2.6715]
[1736892937918,2.6709,187.28,187.25,6.41797023]
[1736892938118,2.6709,187.28,187.24,2.6715]
[1736892938320,2.6709,187.28,187.25,6.41905978]
[1736892938520,2.6709,187.28,187.24,2.6715]
[1736892938721,7.86805129,187.3,187.25,6.42109153]
[1736892938916,2.6711,187.27,187.24,2.6715]
[1736892939124,2.6711,187.27,187.25,6.42108941]
[1736892939323,2.6711,187.27,187.26,2.03458728]
[1736892939823,2.671,187.28,187.26,2.03458728]
[1736892940025,2.671,187.28,187.24,2.6715]
[1736892940216,2.671,187.28,187.25,6.42434488]
[1736892940424,2.671,187.28,187.26,6.42434488]
[1736892940622,2.671,187.28,187.24,2.6715]
[1736892940824,2.671,187.28,187.25,6.42696016]
[1736892941125,2.671,187.28,187.26,6.42696016]
[1736892941329,2.671,187.28,187.27,2.03630673]
[1736892942430,2.671,187.28,187.24,2.6715]
[1736892942631,2.671,187.28,187.25,6.43264327]
[1736892942831,2.671,187.28,187.26,6.43264327]
[1736892943130,2.671,187.28,187.27,2.03723287]
[1736892943329,2.671,187.28,187.27,6.43318317]
[1736892943530,2.671,187.28,187.24,2.6715]
[1736892943730,7.86805129,187.3,187.25,6.43594624]
[1736892943930,2.6711,187.27,187.26,6.43594624]
[1736892944632,2.6711,187.27,187.26,6.4368397]
[1736892945935,2.6713,187.26,187.22,5.9322]
[1736892946229,10.53935129,187.26,187.23,6.43937361]
[1736892946429,10.53935129,187.26,187.24,6.43937361]
[1736892946629,10.53935129,187.26,187.25,6.43937361]
[1736892948432,10.53935129,187.26,187.25,4.40006314]
[1736892948630,10.53935129,187.26,187.25,6.44305178]
[1736892950435,10.53935129,187.26,187.25,6.45674768]
[1736892952237,10.53935129,187.26,187.25,9.73020642]
[1736892952436,10.53935129,187.26,187.25,4.41375904]
[1736892952737,2.6713,187.26,187.25,9.73284359]
[1736892954437,2.6713,187.26,187.25,4.41375904]
[1736892954737,2.6713,187.26,187.25,9.73690563]
[1736892956434,2.6713,187.26,187.25,5.32314659]
[1736892956735,2.6713,187.26,187.25,9.75002338]
[1736892958436,7.86805129,187.27,187.25,9.75983373]
[1736892958641,7.86805129,187.27,187.26,9.75983373]
[1736892958943,7.86805129,187.27,187.26,4.42687679]
[1736892959138,7.86805129,187.27,187.26,9.7611873]
[1736892960239,10.53915129,187.27,187.26,6.47781449]
[1736892960438,2.6711,187.27,187.26,6.47781449]
[1736892960739,2.6711,187.27,187.26,6.43963231]
[1736892961940,10.53915129,187.27,187.26,6.44151431]
[1736892965742,10.53915129,187.27,187.26,4.43649438]
[1736892965949,10.53915129,187.27,187.26,6.44373471]
[1736892966350,10.53915129,187.27,187.26,6.44967032]
[1736892967851,10.53915129,187.27,187.16,7.86805129]
[1736892967852,2.6721,187.21,187.16,7.86805129]
[1736892968447,2.6721,187.21,187.17,2.6724]
[1736892968753,2.6721,187.21,187.16,7.86805129]
[1736892969950,2.6718,187.22,187.18,2.6723]
[1736892973657,2.6718,187.22,187.16,7.86805129]
[1736892973852,2.6718,187.22,187.19,2.6722]
[1736892979762,2.6718,187.22,187.2,1.99623914]
[1736892979958,2.6718,187.22,187.21,1.99623914]
[1736892982966,2.6718,187.22,187.21,1.99648459]
[1736892986277,7.86805129,187.23,187.21,1.99648459]
[1736892986473,5.58,187.28,187.23,2.6716]
[1736892986776,13.44805129,187.28,187.24,1.99584814]
[1736892986973,13.44805129,187.28,187.25,1.99584814]
[1736892987272,2.6711,187.27,187.26,1.99584814]
[1736892991174,2.6713,187.26,187.23,2.6716]
[1736892991377,10.53935129,187.26,187.24,1.99627869]
[1736892991578,10.53935129,187.26,187.25,1.99627869]
[1736892992480,2.6709,187.29,187.25,1.99627869]
[1736892992679,9.13232267,187.3,187.26,1.99564316]
[1736892992878,9.13232267,187.3,187.27,1.99564316]
[1736892993076,11.80302267,187.3,187.28,1.99564316]
[1736892993378,11.80302267,187.3,187.29,1.99564316]
[1736892993779,2.6703,187.33,187.29,4.66644316]
[1736892994079,2.6703,187.33,187.3,1.99564316]
[1736892994278,2.6703,187.33,187.31,1.99564316]
[1736892994474,2.6703,187.33,187.32,1.99564316]
[1736892994779,10.53815129,187.34,187.32,1.99564316]
[1736892994980,10.53815129,187.34,187.33,1.99564316]
[1736892995477,280.64187526,187.5,187.33,1.99564316]
[1736892995478,18.64187526,187.5,187.33,1.99564316]
[1736892995689,7.86805129,187.4,187.34,9.86369445]
[1736892995985,7.86805129,187.4,187.35,1.99564316]
[1736892996185,7.86805129,187.4,187.34,7.86805129]
[1736892996186,7.86805129,187.4,187.36,4.66534316]
[1736892996385,7.86805129,187.4,187.37,1.99564316]
[1736892996585,7.86805129,187.4,187.38,1.98833165]
[1736892996792,7.86805129,187.4,187.39,1.98833165]
[1736892997287,7.86805129,187.4,187.36,2.6697]
[1736892997587,7.86805129,187.4,187.37,1.98590481]
[1736892997588,10.53725129,187.4,187.37,1.98590481]
[1736892997788,10.53725129,187.4,187.38,1.98590481]
[1736892997982,10.53725129,187.4,187.36,2.6697]
[1736892998186,10.53725129,187.4,187.37,1.98586535]
[1736892998485,10.53725129,187.4,187.38,1.98586535]
[1736892998685,10.53725129,187.4,187.35,2.6699]
[1736892998989,10.53725129,187.4,187.36,1.98415184]
[1736892999188,10.53725129,187.4,187.37,1.98397409]
[1736892999382,10.53725129,187.4,187.35,2.6699]
[1736892999589,10.53725129,187.4,187.36,1.98256567]
[1736892999785,10.53725129,187.4,187.37,1.98256567]
[1736893000087,13.3298,187.64,187.36,7.86805129]
[1736893000290,10.53705129,187.42,187.37,4.65201465]
[1736893000492,10.53705129,187.42,187.38,1.98241465]
[1736893000692,7.86805129,187.42,187.37,2.6696]
[1736893002196,2.6691,187.41,187.37,2.6696]
[1736893003093,2.6691,187.41,187.36,10.53785129]
[1736893008597,2.6692,187.4,187.36,10.53785129]
[1736893011398,2.6694,187.39,187.36,10.53785129]
[1736893011898,2.6694,187.39,187.36,2.6698]
[1736893012091,2.6694,187.39,187.36,10.53785129]
[1736893019705,2.6694,187.39,187.37,2.6697]
[1736893023608,2.6694,187.39,187.38,1.97006967]
[1736893023907,2.6694,187.39,187.38,1.97017351]
[1736893024109,2.6694,187.39,187.37,2.6697]
[1736893024509,2.6694,187.39,187.38,1.97066182]
[1736893035217,7.86805129,187.4,187.29,4.9497]
[1736893035411,2.6702,187.34,187.3,7.86805129]
[1736893036416,2.6702,187.34,187.31,2.6705]
[1736893036715,2.6704,187.32,187.3,7.86805129]
[1736893037413,2.6704,187.32,187.29,4.9497]
[1736893037819,7.86805129,187.34,187.29,4.9497]
[1736893038013,2.6703,187.33,187.29,7.6204]
[1736893039810,7.86805129,187.34,187.16,107.34490146]
[1736893040113,7.86805129,187.32,187.27,57.84026884]
[1736893040316,5.48,187.38,187.27,49.97221755]
[1736893040516,7.86805129,187.34,187.28,7.86805129]
[1736893040723,13.34805129,187.38,187.32,7.86805129]
[1736893040919,195.0,187.41,187.32,7.86805129]
[1736893041120,7.86805129,187.4,187.34,7.86805129]
[1736893042331,2.6695,187.38,187.34,10.53815129]
[1736893042531,2.6695,187.38,187.34,2.6701]
[1736893045331,7.86805129,187.39,187.33,7.86805129]
[1736893045531,2.6693,187.4,187.36,2.6697]
[1736893045732,2.6693,187.4,187.35,7.86805129]
[1736893046824,2.6693,187.4,187.36,2.6698]
[1736893047235,2.6693,187.4,187.37,1.98119303]
[1736893047435,2.6693,187.4,187.38,1.98119303]
[1736893047634,2.6693,187.4,187.39,1.98119303]
[1736893062850,7.86805129,187.41,187.39,1.97884964]
[1736893063049,7.86805129,187.41,187.35,2.6699]
[1736893063249,7.86805129,187.41,187.36,1.97883638]
[1736893063442,7.86805129,187.41,187.37,1.978722]
[1736893063645,7.86805129,187.41,187.38,1.978722]
[1736893063846,7.86805129,187.41,187.39,1.978722]
[1736893064052,7.86805129,187.41,187.35,2.6699]
[1736893064251,7.86805129,187.41,187.36,1.9787337]
[1736893064252,2.6696,187.38,187.36,1.9787337]
[1736893064448,2.6696,187.38,187.37,1.9787337]
[1736893068954,2.6696,187.38,187.37,1.97816489]
[1736893071050,2.6696,187.38,187.37,1.97831816]
[1736893071548,2.6696,187.38,187.37,1.97863394]
[1736893073151,2.6696,187.38,187.37,1.97857074]
[1736893077147,2.6696,187.38,187.37,1.97890347]
[1736893079060,2.6696,187.38,187.34,2.67]
[1736893079362,2.6696,187.38,187.35,1.97943576]
[1736893079553,2.6696,187.38,187.36,1.97943576]
[1736893079756,2.6696,187.38,187.37,1.97943576]
[1736893084654,2.6696,187.38,187.37,1.98157764]
[1736893088765,2.6696,187.38,187.37,1.98479111]
[1736893095569,2.6696,187.38,187.37,1.98579675]
[1736893097067,2.6696,187.38,187.37,1.98497392]
[1736893098872,2.6696,187.38,187.34,2.67]
[1736893099072,2.6696,187.38,187.35,1.98476113]
[1736893099372,2.6696,187.38,187.36,1.98476113]
[1736893099574,2.6696,187.38,187.34,2.67]
[1736893099769,2.6696,187.38,187.35,1.98467204]
[1736893099970,2.6696,187.38,187.36,1.98467204]
[1736893100272,2.6696,187.38,187.37,1.98467204]
[1736893105174,2.6696,187.38,187.37,1.98406604]
[1736893107178,2.6696,187.38,187.37,1.98401022]
[1736893109283,4.94849799,187.42,187.37,1.98352732]
[1736893109483,4.94849799,187.42,187.38,1.98352732]
[1736893109678,4.94849799,187.42,187.39,1.98352732]
[1736893109983,4.94849799,187.42,187.4,1.98352732]
[1736893110175,4.94849799,187.42,187.41,1.98352732]
[1736893110673,7.86805129,187.44,187.41,4.65262732]
[1736893110879,7.86805129,187.44,187.42,1.98352732]
[1736893111081,7.86805129,187.44,187.43,1.98352732]
[1736893111380,5.3351,187.53,187.43,1.98243622]
[1736893111579,7.86805129,187.46,187.44,1.98243622]
[1736893111781,7.86805129,187.46,187.42,2.6689]
[1736893112680,7.86805129,187.46,187.43,1.98140647]
[1736893112887,7.86805129,187.46,187.44,1.98140647]
[1736893113086,10.53645129,187.46,187.45,1.98140647]
[1736893113285,10.53645129,187.46,187.42,2.6689]
[1736893113484,10.53645129,187.46,187.43,1.98060491]
[1736893113683,10.53645129,187.46,187.44,1.98060491]
[1736893113881,10.53645129,187.46,187.45,1.98060491]
[1736893114282,2.6684,187.46,187.45,1.98060491]
[1736893114482,10.53615129,187.49,187.45,2.6685]
[1736893114983,7.86805129,187.49,187.46,1.97931514]
[1736893115187,7.86805129,187.49,187.47,1.97931514]
[1736893115389,7.86805129,187.49,187.48,1.97931514]
[1736893116680,195.0,187.57,187.48,1.97931514]
[1736893116882,7.86805129,187.51,187.49,1.97657884]
[1736893117078,7.86805129,187.51,187.43,7.86805129]
[1736893117276,7.86805129,187.51,187.47,2.6681]
[1736893117476,7.86805129,187.51,187.48,1.97538094]
[1736893117677,7.86805129,187.51,187.49,1.97524695]
[1736893117882,7.86805129,187.51,187.47,2.6681]
[1736893118082,7.86805129,187.51,187.48,1.97479772]
[1736893118279,5.332,187.64,187.41,1.66]
[1736893118280,145.84151698,187.7,187.49,9.84284901]
[1736893118479,7.86805129,187.55,187.5,1.97479772]
[1736893118785,7.86805129,187.55,187.51,1.97479772]
[1736893118987,7.86805129,187.55,187.52,4.64229772]
[1736893119185,7.86805129,187.55,187.53,1.97479772]
[1736893119488,7.86805129,187.56,187.54,1.97479772]
[1736893119685,7.86805129,187.56,187.52,2.6675]
[1736893119989,7.86805129,187.54,187.53,1.96956555]
[1736893120289,7.86805129,187.54,187.53,1.96785017]
[1736893120489,10.53525129,187.54,187.53,1.96785017]
[1736893120689,10.53525129,187.54,187.5,3.1526]
[1736893120885,7.86805129,187.52,187.51,1.96782291]
[1736893121085,2.6672,187.54,187.51,1.96782291]
[1736893121389,7.86805129,187.53,187.52,1.96632154]
[1736893122390,7.86805129,187.53,187.5,5.8204]
[1736893122591,7.86805129,187.53,187.51,1.9649349]
[1736893122791,2.6672,187.54,187.5,5.8204]
[1736893123093,2.6672,187.54,187.51,1.96492782]
[1736893123290,2.6672,187.54,187.5,5.8204]
[1736893123490,2.6672,187.54,187.51,1.96381275]
[1736893123790,2.6672,187.54,187.51,2.6677]
[1736893124582,10.53515129,187.55,187.51,2.6677]
[1736893124783,7.86805129,187.55,187.52,2.6674]
[1736893125288,7.86805129,187.55,187.53,2.6674]
[1736893125789,7.86805129,187.57,187.53,2.6674]
[1736893129392,40.57760863,187.67,187.57,2.6667]
[1736893129393,2.6662,187.62,187.57,2.6667]
[1736893129595,7.86805129,187.6,187.54,7.86805129]
[1736893130295,7.86805129,187.6,187.58,2.6666]
[1736893131093,7.86805129,187.6,187.59,2.6665]
[1736893132096,7.86805129,187.62,187.59,2.6665]
[1736893140303,7.86805129,187.6,187.58,2.6666]
[1736893140507,7.86805129,187.6,187.54,7.86805129]
[1736893141006,7.86805129,187.6,187.57,2.6667]
[1736893143009,7.86805129,187.6,187.54,7.86805129]
[1736893143209,7.86805129,187.6,187.58,2.6666]
[1736893145410,2.667,187.56,187.53,2.6674]
[1736893145611,10.53505129,187.56,187.53,2.6674]
[1736893149308,7.86805129,187.71,187.55,7.86805129]
[1736893149510,7.86805129,187.71,187.64,7.86805129]
[1736893150013,10.53295129,187.71,187.66,2.6655]
[1736893150512,7.86805129,187.7,187.66,2.6655]
[1736893152419,2.6647,187.72,187.66,2.6655]
[1736893152718,7.86805129,187.7,187.67,2.6654]
[1736893154223,2.6647,187.72,187.67,2.6654]
[1736893154522,7.86805129,187.7,187.67,2.6654]
[1736893155621,8.1846,187.73,187.68,2.6652]
[1736893155813,7.86805129,187.71,187.68,2.6652]
[1736893157829,5.52,187.74,187.71,2.6647]
[1736893158125,7.86805129,187.75,187.71,2.6647]
[1736893158728,203.1842,187.76,187.71,2.6647]
[1736893159025,7.86805129,187.75,187.71,2.6647]
[1736893160522,208.38805129,187.76,187.72,2.6646]
[1736893161026,202.86805129,187.76,187.72,2.6646]
[1736893161727,7.86805129,187.74,187.68,7.86805129]
[1736893161927,7.86805129,187.74,187.69,1.9549383]
[1736893162127,7.86805129,187.74,187.7,1.9549383]
[1736893162331,7.86805129,187.74,187.68,7.86805129]
[1736893162622,7.86805129,187.74,187.69,1.9550661]
[1736893162831,7.86805129,187.74,187.71,2.6648]
[1736893163728,7.86805129,187.74,187.68,7.86805129]
[1736893164027,7.86805129,187.72,187.65,7.86805129]
[1736893164330,7.86805129,187.72,187.66,1.95623406]
[1736893164524,7.86805129,187.72,187.67,1.95623406]
[1736893164734,7.86805129,187.72,187.65,7.86805129]
[1736893164928,7.86805129,187.72,187.66,1.95598911]
[1736893165124,7.86805129,187.72,187.68,2.6652]
[1736893166731,10.53275129,187.72,187.68,2.6652]
[1736893167628,2.6648,187.71,187.67,2.6654]
[1736893167833,7.86805129,187.72,187.59,4.7204]
[1736893168025,7.86805129,187.72,187.65,7.86805129]
[1736893168229,7.86805129,187.72,187.66,1.95646275]
[1736893168430,7.86805129,187.72,187.65,7.86805129]
[1736893168625,7.86805129,187.72,187.66,1.95655045]
[1736893168834,7.86805129,187.72,187.65,7.86805129]
[1736893169034,7.86805129,187.72,187.66,1.95632987]
[1736893169236,2.665,187.7,187.67,2.6654]
[1736893172034,10.53305129,187.7,187.66,2.6655]
[1736893173037,7.86805129,187.68,187.59,4.7204]
[1736893173237,7.86805129,187.68,187.63,2.6659]
[1736893173238,2.6654,187.67,187.63,2.6659]
[1736893175340,2.6651,187.69,187.64,2.6658]
[1736893175539,7.86805129,187.68,187.64,2.6658]
[1736893176734,10.53335129,187.68,187.64,2.6658]
[1736893177943,5.48,187.74,187.64,7.86805129]
[1736893178144,7.86805129,187.71,187.68,2.6652]
[1736893178545,10.53325129,187.69,187.64,2.6657]
[1736893182543,7.86805129,187.69,187.64,2.6657]
[1736893182744,2.6653,187.68,187.64,2.6657]
[1736893183048,7.86805129,187.67,187.58,7.86805129]
[1736893183247,7.86805129,187.67,187.59,1.96401676]
[1736893183548,7.86805129,187.67,187.6,1.96401676]
[1736893183844,7.86805129,187.67,187.61,1.96404074]
[1736893184044,7.86805129,187.67,187.62,1.96404074]
[1736893184241,2.6658,187.65,187.61,2.6661]
[1736893184446,2.6658,187.65,187.62,1.96453221]
[1736893184752,10.53385129,187.65,187.61,2.6661]
[1736893185045,10.53385129,187.65,187.62,1.96455193]
[1736893185248,10.53385129,187.65,187.61,2.6661]
[1736893185447,10.53385129,187.65,187.62,1.96468027]
[1736893185746,10.53385129,187.65,187.61,2.6661]
[1736893185944,10.53385129,187.65,187.62,1.96469972]
[1736893186246,10.53385129,187.65,187.61,2.6661]
[1736893186445,10.53385129,187.65,187.62,1.96482843]
[1736893186646,10.53385129,187.65,187.61,2.6661]
[1736893186846,10.53385129,187.65,187.62,1.96502434]
[1736893187150,10.53385129,187.65,187.61,2.6661]
[1736893187351,10.53385129,187.65,187.62,1.96532637]
[1736893187550,10.53385129,187.65,187.61,2.6661]
[1736893187851,10.53385129,187.65,187.62,1.96533514]
[1736893188051,10.53385129,187.65,187.61,2.6661]
[1736893188253,10.53385129,187.65,187.62,1.96547804]
[1736893188449,10.53385129,187.65,187.63,1.96568159]
[1736893188753,10.53385129,187.65,187.61,2.6661]
[1736893188951,10.53385129,187.65,187.62,1.96566825]
[1736893189151,10.53385129,187.65,187.63,1.96566825]
[1736893189357,10.53385129,187.65,187.62,2.6661]
[1736893189546,10.53385129,187.65,187.63,1.96618199]
[1736893189746,10.53385129,187.65,187.62,2.6661]
[1736893190050,10.53385129,187.65,187.63,1.96622982]
[1736893190245,10.53385129,187.65,187.62,2.6661]
[1736893190451,10.53385129,187.65,187.63,1.96675127]
[1736893190751,10.53385129,187.65,187.62,2.6661]
[1736893190952,10.53385129,187.65,187.63,1.96707929]
[1736893191145,10.53385129,187.65,187.59,2.6665]
[1736893191452,10.53385129,187.65,187.6,1.96798674]
[1736893191651,7.86805129,187.65,187.61,1.96798674]
[1736893191951,2.6658,187.64,187.62,1.96839092]
[1736893192249,2.6658,187.64,187.63,1.96839092]
[1736893193342,2.6658,187.64,187.59,10.53455129]
[1736893193542,2.6658,187.64,187.6,1.97132954]
[1736893193745,2.6658,187.64,187.61,1.97132954]
[1736893193949,2.6658,187.64,187.62,1.97132954]
[1736893194147,2.6658,187.64,187.63,1.97132954]
[1736893197455,2.6658,187.64,187.63,1.97186714]
[1736893199454,2.6657,187.65,187.63,1.97163006]
[1736893199654,13.32805129,187.66,187.58,7.86805129]
[1736893199854,13.32805129,187.66,187.6,2.6664]
[1736893200055,13.32805129,187.66,187.61,1.97162524]
[1736893200258,2.6661,187.63,187.62,1.97162524]
[1736893201257,1.6617,187.71,187.62,1.97162524]
[1736893201457,2.6654,187.67,187.64,2.6658]
[1736893201759,2.6654,187.67,187.65,1.97047773]
[1736893201953,2.6654,187.67,187.64,2.6658]
[1736893202156,2.6654,187.67,187.65,1.97044749]
[1736893202358,2.6654,187.67,187.64,2.6658]
[1736893202659,2.6654,187.67,187.65,1.97032627]
[1736893202861,2.6654,187.67,187.64,2.6658]
[1736893203159,7.86805129,187.69,187.66,2.6655]
[1736893203353,7.86805129,187.69,187.67,1.97010043]
[1736893203551,7.86805129,187.69,187.62,7.86805129]
[1736893203754,7.86805129,187.69,187.63,1.96956818]
[1736893203962,2.665,187.7,187.64,9.83761947]
[1736893204164,2.665,187.7,187.65,1.96956818]
[1736893204356,2.665,187.7,187.66,1.96956818]
[1736893204550,2.665,187.7,187.67,1.96956818]
[1736893204756,8.1244,187.74,187.68,9.83761204]
[1736893205061,8.1244,187.74,187.69,1.96956075]
[1736893205260,2.6647,187.72,187.67,7.86805129]
[1736893205461,2.6647,187.72,187.68,1.9694292]
[1736893205755,8.1443,187.75,187.69,1.9694292]
[1736893205961,16.01235129,187.75,187.7,1.9694292]
[1736893206260,16.01235129,187.75,187.71,1.9694292]
[1736893206559,16.01235129,187.75,187.69,7.86805129]
[1736893206860,10.53235129,187.75,187.7,4.63438349]
[1736893207061,10.53235129,187.75,187.71,1.96951718]
[1736893207362,10.53235129,187.75,187.72,1.96951718]
[1736893207554,10.53235129,187.75,187.7,2.665]
[1736893207761,2.6641,187.76,187.72,2.6647]
[1736893207962,2.6641,187.76,187.73,1.96972684]
[1736893208261,2.6641,187.76,187.72,2.6647]
[1736893208662,2.6641,187.76,187.69,7.86805129]
[1736893208856,2.6641,187.76,187.71,2.6648]
[1736893209056,2.6641,187.76,187.72,1.96906776]
[1736893209260,2.6641,187.76,187.73,1.96906776]
[1736893209458,2.6641,187.76,187.71,2.6648]
[1736893209658,2.6641,187.76,187.72,1.9687909]
[1736893209859,2.6641,187.76,187.73,1.9687909]
[1736893210062,2.6641,187.76,187.71,2.6648]
[1736893210362,2.6641,187.76,187.72,1.96881452]
[1736893210558,2.6641,187.76,187.71,2.6648]
[1736893210559,2.6641,187.76,187.73,1.96881452]
[1736893210756,2.6641,187.76,187.71,10.53285129]
[1736893210958,2.6641,187.76,187.72,4.63305705]
[1736893211257,2.6641,187.76,187.73,1.96835705]
[1736893211461,2.6641,187.76,187.72,2.6647]
[1736893211663,2.6641,187.76,187.73,1.96834635]
[1736893211863,2.6641,187.76,187.72,2.6647]